Cogmind - Beta 14 @@@ ROGUE MODE // 2024.08.09 @ 09:53:25 Player: Rocko1345 Result: Self-destructed Performance ------------- Evolutions (4) 2000 Regions Visited (9) 1800 Robots Destroyed (55) 275 Value Destroyed (2036) 2036 Prototype IDs (34) 680 Alien Tech Used (0) 0 Bonus (1119) 1119 TOTAL SCORE: 7910 Bonus ------- Pacifist 270 High Alert Combat Kills 80 Follower Combat Kills 469 Aligned with FarCom 300 Cogmind --------- Core Integrity 418/850 Matter 300/300 Energy 290/290 System Corruption 5% Temperature Cool (0) Movement Core (200) Ox3 Location -6/Extension Parts ------- > --- POWER (2) -------- Improved Deuterium Engine > --- PROPULSION (4) --- (None) > --- UTILITY (7) ------ Advanced Heat Sink Improved Signal Interpreter Advanced Terrain Scanner Advanced Terrain Scan Processor Improved Hacking Suite > --- WEAPON (2) ------- (None) > --- INVENTORY (5) ---- Advanced ECM Suite Magnetic Acceleration Cannon Improved Datajack Peak State ------------ > --- POWER ------------ Improved Deuterium Engine Light Fission Core > --- PROPULSION ------- Backup Propulsion I Aerolev Unit Gravmag System > --- UTILITY ---------- Improved Heat Sink Advanced Heat Sink Improved Signal Interpreter Advanced Terrain Scanner Advanced Terrain Scan Processor Improved Hacking Suite > --- WEAPON ----------- Heavy Laser > --- INVENTORY -------- Advanced ECM Suite Magnetic Acceleration Cannon [Rating: 47] Favorites ----------- Power Ion Engine Engine Ion Engine Power Core Nuclear Core Propulsion Wheel Leg Flexi-carbon Leg Wheel Wheel Hover Unit Aerolev Unit Utility Improved Signal Interpreter Device Trap Scanner Storage Huge Storage Unit Processor Improved Signal Interpreter Hackware Improved Hacking Suite Protection Core Shielding Weapon AWS/Thermal Energy Gun AWS/Thermal Ballistic Gun Heavy Machine Gun Ballistic Cannon Gauss Cannon Launcher Grenade Launcher Special Melee Weapon Improved Datajack Build | -11 -10 -10 -10 -9 -8 -7 -7 -6 -6 ------- Run | Yrd Mat Min Exi Min Mat Fac Sto Fac Ext Slots Evolved 8 | . . . . . 4 2 . 2 . Power 1 | . . . . . 1 . . . . Propulsion 2 | . . . . . 1 1 . . . Utility 5 | . . . . . 2 1 . 2 . Weapon . | . . . . . . . . . . Parts Attached 43 | 6 1 . 2 . 5 4 10 15 . Power 6 | 1 . . . . 1 1 . 3 . Engine 4 | 1 . . . . . 1 . 2 . Core 2 | . . . . . 1 . . 1 . Reactor . | . . . . . . . . . . Propulsion 9 | 2 . . . . 2 . 2 3 . Treads . | . . . . . . . . . . Leg 3 | . . . . . . . 2 1 . Wheel 4 | 2 . . . . 2 . . . . Hover 2 | . . . . . . . . 2 . Flight . | . . . . . . . . . . Utility 14 | 1 1 . 1 . 2 1 2 6 . Device 5 | . . . . . 1 1 . 3 . Storage 2 | 1 . . 1 . . . . . . Processor 3 | . . . . . 1 . . 2 . Hackware 2 | . . . . . . . 1 1 . Protection 2 | . 1 . . . . . 1 . . Artifact . | . . . . . . . . . . Weapon 14 | 2 . . 1 . . 2 6 3 . Energy Gun 5 | 1 . . 1 . . 1 1 1 . Energy Cannon . | . . . . . . . . . . Ballistic Gun 4 | 1 . . . . . . 2 1 . Ballistic Cannon 3 | . . . . . . . 2 1 . Launcher 1 | . . . . . . . 1 . . Special Weapon . | . . . . . . . . . . Impact Weapon . | . . . . . . . . . . Slashing Weapon . | . . . . . . . . . . Piercing Weapon . | . . . . . . . . . . Special Melee Weapon 1 | . . . . . . 1 . . . Unidentified Prototypes 2 | . . . . . . . 1 1 . Parts Lost 20 | . . . . . . . 11 3 6 Power 5 | . . . . . . . 2 2 1 Propulsion 8 | . . . . . . . 5 . 3 Utility 2 | . . . . . . . 1 . 1 Weapon 5 | . . . . . . . 3 1 1 Highest Loss Streak 5 | . . . . . . . 5 2 4 To Critical Strikes 1 | . . . . . . . 1 . . Average Slot Usage (%) 69 | . 98 100 90 85 73 83 63 43 72 Engine 7 | . 14 14 14 14 9 7 4 5 6 Core 2 | . . . . . 4 7 2 1 3 Wheel 13 | . 28 28 28 28 19 23 15 . . Hover 4 | . . . . . . . . 7 16 Device 9 | . . . . . 6 14 9 5 19 Storage 5 | . 14 14 14 14 9 7 5 . . Processor 6 | . . . . . 6 7 5 6 13 Hackware 2 | . . . . . . . 2 4 6 Protection 5 | . 12 14 14 14 9 7 6 . . Energy Gun 6 | . 14 14 13 14 9 6 4 1 5 Ballistic Gun 1 | . 14 14 5 . . . . 2 . Peak Build Rating 47 | 6 7 7 21 21 34 40 40 47 47 Average Rating 29 | 3 6 7 15 21 27 37 29 27 42 On Entrance 18 | . 6 7 7 21 21 34 40 . 47 Naked Turns 87 | . . . . . . . 82 5 . Heaviest Build 104 | 13 14 14 94 94 103 104 104 24 24 Greatest Support 36 | 20 20 20 20 20 36 36 36 23 23 Greatest Overweight (x) 6 | . . . 4 4 5 2 6 1 3 Average Overweight (x) 1 | . . . . 4 3 2 2 . 1 Largest Inventory Capacity 25 | 8 8 8 25 25 25 25 25 5 5 Average Capacity 14 | 6 8 8 10 25 25 25 21 5 5 Most Carried 17 | 2 2 4 8 6 14 16 17 5 3 Average Carried 7 | . 1 3 5 6 7 12 12 2 2 Final Capacity 25 | 8 8 8 25 25 25 25 5 5 5 Final Carried 14 | . 2 4 6 6 13 14 . 2 3 Class Distribution -------------------- 75% | Mutant 22% | Scavenger-Mutant Dominant Class ---------------- Mutant | -10/Materials Mutant | -10/Mines Mutant | -10/Exiles Mutant | -9/Mines Mutant | -8/Materials Mutant | -7/Factory Mutant | -7/Storage Mutant | -6/Factory Scavenger-Mutant | -6/Extension Resources | -11 -10 -10 -10 -9 -8 -7 -7 -6 -6 ----------- Run | Yrd Mat Min Exi Min Mat Fac Sto Fac Ext Matter Collected 1238 | 174 . 40 . . 76 105 494 263 86 Remotely . | . . . . . . . . . . Salvage Created 2122 | . . . . . 480 105 1145 265 127 Parts 87 | . . . . . 28 8 32 17 2 Haulers Intercepted . | . . . . . . . . . . Recyclers Shooed 3 | . . . . . . . 1 1 1 Parts Field Recycled . | . . . . . . . . . . Retrieved Matter . | . . . . . . . . . . Parts Self-Destructed . | . . . . . . . . . . Prevented . | . . . . . . . . . . Kills | -11 -10 -10 -10 -9 -8 -7 -7 -6 -6 ------- Run | Yrd Mat Min Exi Min Mat Fac Sto Fac Ext Combat Hostiles Destroyed 45 | . . . . . 10 3 22 8 2 Guns 33 | . . . . . 10 3 14 4 2 Cannons 6 | . . . . . . . 2 4 . AOE 5 | . . . . . . . 5 . . Classes Destroyed 10 | . . . . . 5 1 4 . . Worker 2 | . . . . . . . 2 . . Builder 4 | . . . . . 1 . 3 . . Recycler 1 | . . . . . . . 1 . . Watcher 3 | . . . . . 2 . . 1 . Swarmer 11 | . . . . . 4 2 1 4 . Grunt 21 | . . . . . 4 . 15 2 . Duelist 2 | . . . . . . . 1 1 . Protector 1 | . . . . . . . 1 . . Sentry 6 | . . . . . 2 . 2 . 2 Programmer 4 | . . . . . . 1 2 1 . Best Kill Streak 9 | . . . . . 5 2 9 3 1 Combat Bots Only 6 | . . . . . 4 2 6 3 1 Max Kills in Single Turn 3 | . . . . . 1 1 3 1 1 Gunslinging . | . . . . . . . . . . Exploded 3 | . . . . . . . 3 . . Melee . | . . . . . . . . . . Uniques/NPCs Destroyed . | . . . . . . . . . . Combat | -11 -10 -10 -10 -9 -8 -7 -7 -6 -6 -------- Run | Yrd Mat Min Exi Min Mat Fac Sto Fac Ext Hostile Shots Fired 442 | . 1 3 . . 27 5 248 74 84 Missed 154 | . 1 1 . . 13 3 83 24 29 Damage Taken 3593 | . . 13 . . 174 27 2094 848 437 Core 1027 | . . . . . 25 . 570 351 81 Absorbed by Shields 42 | . . . . . . . . . 42 Redirected to Shielding 27 | . . . . . 5 . 22 . . Core Remaining (%) 78 | 100 . . . 100 95 . 18 . . Volleys Fired 126 | . . . . . . . 56 45 25 Largest 2 | . . . . . . . 2 1 1 Hottest 96 | . . . . . . . 96 53 69 Shots Fired 238 | . . . . . 27 8 133 45 25 Gun 193 | . . . . . 27 8 102 31 25 Cannon 40 | . . . . . . . 26 14 . Launcher 5 | . . . . . . . 5 . . Special . | . . . . . . . . . . Kinetic 114 | . . . . . . . 69 45 . Thermal 119 | . . . . . 27 8 59 . 25 Explosive 5 | . . . . . . . 5 . . Electromagnetic . | . . . . . . . . . . Robot Hit Streak 20 | . . . . . 10 4 20 9 5 Robot Miss Streak 4 | . . . . . 2 1 3 4 3 Penetration Max 1 | . . . . . . . 1 . . Secondary Targets . | . . . . . . . . . . Autonomous 93 | . . . . . 27 8 58 . . Shots Hit Robots 170 | . . . . . 20 6 101 28 15 Core Hits 87 | . . . . . 15 3 51 13 5 Critical Kills 1 | . . . . . . . 1 . . Critical Parts Destroyed 2 | . . . . . . . 1 1 . Critical Strikes 6 | . . . . . . . 3 2 1 Burn 1 | . . . . . . . . . 1 Destroy 3 | . . . . . . . 2 1 . Blast 2 | . . . . . . . 1 1 . Melee Attacks . | . . . . . . . . . . Impact . | . . . . . . . . . . Slashing . | . . . . . . . . . . Piercing . | . . . . . . . . . . Sneak Attacks . | . . . . . . . . . . Combat Hostiles . | . . . . . . . . . . Follow-up Attacks . | . . . . . . . . . . Damage Inflicted 5237 | . . . . . 625 188 3336 799 289 Guns 3824 | . . . . . 625 188 2252 473 286 Cannons 899 | . . . . . . . 573 326 . Explosions 490 | . . . . . . . 490 . . Melee . | . . . . . . . . . . Ramming 24 | . . . . . . . 21 . 3 Kinetic 2097 | . . . . . . . 1298 799 . Thermal 2626 | . . . . . 625 188 1527 . 286 Explosive 490 | . . . . . . . 490 . . Electromagnetic . | . . . . . . . . . . Impact . | . . . . . . . . . . Slashing . | . . . . . . . . . . Piercing . | . . . . . . . . . . Highest Corruption 5 | . . . . . . . 3 . 5 Average Corruption 3 | . . . . . . . 2 . 4 Corruption Purged . | . . . . . . . . . . Corruption Blocked . | . . . . . . . . . . Effects 18 | . . . . . . . 9 . 9 Message Errors 3 | . . . . . . . 1 . 2 Matter Fused 5 | . . . . . . . 3 . 2 Heat Flow Errors 1 | . . . . . . . . . 1 Energy Discharges 4 | . . . . . . . 2 . 2 Parts Rejected 1 | . . . . . . . 1 . . Data Loss (minor) 4 | . . . . . . . 2 . 2 Overload Shots . | . . . . . . . . . . Overflow Damage 13 | . . . . . . . 13 . . Projectiles 13 | . . . . . . . 13 . . Explosions . | . . . . . . . . . . Melee . | . . . . . . . . . . Knockbacks 8 | . . . . . . . 2 6 . Impact . | . . . . . . . . . . Kinetic 8 | . . . . . . . 2 6 . Secondary . | . . . . . . . . . . Self-Inflicted Damage 11 | . . . . . . . 10 . 1 Shots . | . . . . . . . . . . Rammed 4 | . . . . . . . 3 . 1 Targets Rammed 4 | . . . . . . . 3 . 1 Kicked . | . . . . . . . . . . Crushed . | . . . . . . . . . . Highest Temperature 202 | . . . . . . . 202 10 40 Average Temperature 39 | . . . . . . . 62 3 40 Received Heat Transfer 1035 | . . . . . 36 . 726 153 120 Siege Activations . | . . . . . . . . . . Robots Corrupted . | . . . . . . . . . . Combat Hostiles . | . . . . . . . . . . Parts Fried . | . . . . . . . . . . Impact Corruptions . | . . . . . . . . . . Robots Melted 1 | . . . . . . . 1 . . Combat Hostiles 1 | . . . . . . . 1 . . Parts Melted 8 | . . . . . 2 . 4 . 2 Heat Transferred 3441 | . . . . . 777 222 1813 . 629 Parts Sabotaged . | . . . . . . . . . . Parts Stolen . | . . . . . . . . . . Parts Stripped . | . . . . . . . . . . Power Chain Reactions . | . . . . . . . . . . Alert | -11 -10 -10 -10 -9 -8 -7 -7 -6 -6 ------- Run | Yrd Mat Min Exi Min Mat Fac Sto Fac Ext Peak Influence 644 | . 15 20 . . 332 85 644 309 158 Initial 279 | . . 5 . . . 66 38 279 49 Average 145 | . 6 19 . . 153 59 234 221 69 Maximum Alert Level 2 | . . . . . 1 . 2 1 . Low Security (%) 68 | 100 100 100 . 100 69 100 44 35 100 Level 1 27 | . . . . . 30 . 38 64 . Level 2 3 | . . . . . . . 16 . . Level 3 . | . . . . . . . . . . Level 4 . | . . . . . . . . . . Level 5 . | . . . . . . . . . . High Security . | . . . . . . . . . . Max Security . | . . . . . . . . . . Squads Dispatched 20 | . 2 . . 1 2 3 9 2 1 Investigation 3 | . . . . . . . 2 . 1 Extermination 5 | . . . . . . 2 2 1 . Reinforcement 8 | . 2 . . . 2 1 3 . . Assault 3 | . . . . 1 . . 2 . . Garrison 1 | . . . . . . . . 1 . Intercept . | . . . . . . . . . . Searches Triggered . | . . . . . . . . . . Construction Impeded 4 | . . . . . 1 . 3 . . Haulers Reinforced . | . . . . . . . . . . Active Scanning Responses . | . . . . . . . . . . Cargo Convoy Interrupts . | . . . . . . . . . . Stealth | -11 -10 -10 -10 -9 -8 -7 -7 -6 -6 --------- Run | Yrd Mat Min Exi Min Mat Fac Sto Fac Ext Distress Signals 6 | . 1 . . . 2 . 1 1 1 Communications Jammed . | . . . . . . . . . . Distress Signals . | . . . . . . . . . . Times Spotted 77 | . 3 3 . . 14 5 38 9 5 Peak Tracking Total 15 | . 4 3 . . 4 4 15 4 2 Tactical Retreats 8 | . . . . . . 1 7 . . Traps | -11 -10 -10 -10 -9 -8 -7 -7 -6 -6 ------- Run | Yrd Mat Min Exi Min Mat Fac Sto Fac Ext Traps Triggered 8 | . . . . . . . 4 1 3 Indirectly . | . . . . . . . . . . Trap Hack Attempts 13 | . . . . . . 13 . . . Triggered . | . . . . . . . . . . Disarmed . | . . . . . . . . . . Reprogrammed 7 | . . . . . . 1 6 . . Reused 2 | . . . . . . . 2 . . Traps Extracted . | . . . . . . . . . . Installed . | . . . . . . . . . . Triggered 2 | . . . . . . . 2 . . Machines | -11 -10 -10 -10 -9 -8 -7 -7 -6 -6 ---------- Run | Yrd Mat Min Exi Min Mat Fac Sto Fac Ext Machines Disabled 2 | . . . . . . . 1 . 1 Max in Single Turn 1 | . . . . . . . 1 . . Garrison Access 1 | . . . . . . . . 1 . Machines Repaired . | . . . . . . . . . . Machines Dismantled . | . . . . . . . . . . Machines Sabotaged . | . . . . . . . . . . Overloaded Fab Kills . | . . . . . . . . . . Hacking | -11 -10 -10 -10 -9 -8 -7 -7 -6 -6 --------- Run | Yrd Mat Min Exi Min Mat Fac Sto Fac Ext Machines Accessed 23 | . 1 . 5 . 1 2 5 3 6 Terminals 14 | . . . . . 1 1 5 1 6 Fabricators . | . . . . . . . . . . Repair Stations 1 | . . . . . . . . 1 . Recycling Units 1 | . 1 . . . . . . . . Scanalyzers . | . . . . . . . . . . Garrison Access 2 | . . . . . . 1 . 1 . Total Hacks 67 | . 2 . 31 . 4 4 12 5 9 Successful 50 | . 2 . 31 . 1 . 6 3 7 Failed 17 | . . . . . 3 4 6 2 2 Catastrophic 4 | . . . . . . 1 2 . 1 Database Lockouts . | . . . . . . . . . . Manual 4 | . 1 . 2 . . . 1 . . Terminals 28 | . . . . . 4 2 12 1 9 Fabricators . | . . . . . . . . . . Repair Stations 3 | . . . . . . . . 3 . Recycling Units 2 | . 2 . . . . . . . . Scanalyzers . | . . . . . . . . . . Garrison Access 3 | . . . . . . 2 . 1 . Terminal Hacks 46 | . . . 31 . 1 . 6 1 7 Record 31 | . . . 30 . . . 1 . . Prototype ID Bank 3 | . . . . . . . 3 . . Open Door 6 | . . . . . . . . 1 5 Repair Station Index 1 | . . . . . 1 . . . . Locate Traps 1 | . . . . . . . 1 . . Reprogram Traps 1 | . . . . . . . 1 . . Dispatch Records 1 | . . . . . . . . . 1 Zone Layout 1 | . . . . . . . . . 1 Derelict Proto ID Bank 1 | . . . 1 . . . . . . Fabricator Hacks . | . . . . . . . . . . Repair Station Hacks 1 | . . . . . . . . 1 . Refit 1 | . . . . . . . . 1 . Recycling Unit Hacks 1 | . 1 . . . . . . . . Report Inventory 1 | . 1 . . . . . . . . Scanalyzer . | . . . . . . . . . . Garrison Access Hacks 1 | . . . . . . . . 1 . Seal Access 1 | . . . . . . . . 1 . Unauthorized Hacks 1 | . 1 . . . . . . . . Terminals . | . . . . . . . . . . Fabricators . | . . . . . . . . . . Repair Stations . | . . . . . . . . . . Recycling Units 1 | . 1 . . . . . . . . Monitor 1 | . 1 . . . . . . . . Scanalyzers . | . . . . . . . . . . Garrison Access . | . . . . . . . . . . Data Cores Recovered . | . . . . . . . . . . Used . | . . . . . . . . . . Hacking Detections 11 | . 1 . . . 1 2 4 1 2 Full Trace Events 4 | . . . . . 1 . 2 . 1 Feedback Events 1 | . . . . . . . . . 1 Corruption 1 | . . . . . . . . . 1 Feedback Blocked . | . . . . . . . . . . Robot Schematics Acquired . | . . . . . . . . . . Robots Built . | . . . . . . . . . . Authchips . | . . . . . . . . . . Time . | . . . . . . . . . . Total Robot Build Rating . | . . . . . . . . . . Part Schematics Acquired . | . . . . . . . . . . Parts Built . | . . . . . . . . . . Authchips . | . . . . . . . . . . Time . | . . . . . . . . . . Total Part Build Rating . | . . . . . . . . . . Parts Repaired . | . . . . . . . . . . Time . | . . . . . . . . . . Parts Recycled . | . . . . . . . . . . Recycled Matter . | . . . . . . . . . . Retrieved Matter . | . . . . . . . . . . Retrieved Components . | . . . . . . . . . . Parts Scanalyzed . | . . . . . . . . . . Part Schematics Acquired . | . . . . . . . . . . Parts Damaged . | . . . . . . . . . . Bothacking | -11 -10 -10 -10 -9 -8 -7 -7 -6 -6 ------------ Run | Yrd Mat Min Exi Min Mat Fac Sto Fac Ext Used RIF Installer . | . . . . . . . . . . Robots Hacked . | . . . . . . . . . . Non-combat . | . . . . . . . . . . Combat . | . . . . . . . . . . Robot Hacks Applied . | . . . . . . . . . . Relay Couplers Released . | . . . . . . . . . . Fabnet Peak Effective % . | . . . . . . . . . . Robots Rewired . | . . . . . . . . . . Allies Hacked . | . . . . . . . . . . Hacks Repelled . | . . . . . . . . . . Allies | -11 -10 -10 -10 -9 -8 -7 -7 -6 -6 -------- Run | Yrd Mat Min Exi Min Mat Fac Sto Fac Ext Total Allies 20 | . . . . 1 . . 12 . 7 Largest Group 10 | . . . . 1 1 . 10 . 6 Highest-Rated Group 305 | . . . . 31 31 . 173 . 305 Highest-Rated Ally 159 | . . . . 31 31 . 31 . 159 Total Orders . | . . . . . . . . . . Ally Attacks 128 | . . . . . 16 . 92 . 20 Total Damage 1943 | . . . . . 323 . 1328 . 292 Kills 16 | . . . . . 2 . 11 . 3 Allies Corrupted 1 | . . . . . . . . . 1 Allies Melted . | . . . . . . . . . . Intel | -11 -10 -10 -10 -9 -8 -7 -7 -6 -6 ------- Run | Yrd Mat Min Exi Min Mat Fac Sto Fac Ext Robot Analysis Total . | . . . . . . . . . . Derelict Logs Recovered . | . . . . . . . . . . Drone Launches . | . . . . . . . . . . Drone Recoveries . | . . . . . . . . . . Exploration | -11 -10 -10 -10 -9 -8 -7 -7 -6 -6 ------------- Run | Yrd Mat Min Exi Min Mat Fac Sto Fac Ext Turns Passed 4871 | 70 167 22 442 62 552 760 1037 979 780 Spaces Moved 3238 | 78 183 25 517 45 350 522 531 699 288 Core 167 | 8 . . . . . . 143 7 9 Treads . | . . . . . . . . . . Legs 308 | . . . . . . . 9 299 . Wheels 2091 | 70 183 25 517 45 350 522 379 . . Hover 672 | . . . . . . . . 393 279 Flight . | . . . . . . . . . . Fastest Speed 50 | 50 80 80 80 140 116 116 50 50 121 Average Speed 104 | 76 80 80 84 140 138 116 109 87 130 Slowest Speed 350 | 80 80 80 140 140 155 116 350 121 200 Overloaded Moves . | . . . . . . . . . . Propulsion Burnouts . | . . . . . . . . . . Robots Hopped . | . . . . . . . . . . Cave-ins Triggered . | . . . . . . . . . . Exploration Rate (%) 29 | 3 26 8 89 18 35 11 70 7 29 Regions Visited 9 Branch Regions 5 Pre-discovered Areas 1 | . . . 1 . . . . . . Known Exits Taken 3 | . . . . . 1 1 . 1 . Unknown Exits Taken 6 | 1 1 1 1 1 . . 1 . . Scrap Searched 1 | . . 1 . . . . . . . Spaces Dug . | . . . . . . . . . . Terrain Destroyed 30 | . . . . . 6 . 23 1 . Melee . | . . . . . . . . . . Projectile 21 | . . . . . 6 . 14 1 . AOE 9 | . . . . . . . 9 . . Terrain Rammed . | . . . . . . . . . . Walls Destroyed . | . . . . . . . . . . Machines Disabled . | . . . . . . . . . . Actions | -11 -10 -10 -10 -9 -8 -7 -7 -6 -6 --------- Run | Yrd Mat Min Exi Min Mat Fac Sto Fac Ext Total 4585 | 86 203 26 521 44 415 677 918 1028 667 Wait 1096 | . 17 . . . 49 133 308 250 339 Move 3229 | 77 182 24 516 44 349 521 530 698 288 Hop . | . . . . . . . . . . Pick Up 48 | 3 3 2 1 . 11 3 8 16 1 Fast Attach 3 | 3 . . . . . . . . . Attach 35 | 3 1 . 1 . 4 3 8 15 . Detach 5 | . . . 2 . . 2 . 1 . Swap 5 | . . . 1 . 1 1 2 . . Drop 7 | . . . . . 1 1 2 3 . Fire 126 | . . . . . . . 56 45 25 Melee . | . . . . . . . . . . Ram 4 | . . . . . . . 3 . 1 Kick . | . . . . . . . . . . Crush . | . . . . . . . . . . Escape Stasis 13 | . . . . . . . . . 13 Rewire 1 | . . . . . . . 1 . . Trap 13 | . . . . . . 13 . . . Miscellaneous . | . . . . . . . . . . Route ------- -11/Scrapyard -10/Materials -10/Mines -10/Exiles -9/Mines -8/Materials -7/Factory -7/Storage -6/Factory (discovered 2 exits: [Low] / *Ext) -6/Extension History --------- Turn | Location | Event 31 | -11/Scrapyard | Discovered new exit (range 16) 71 | -11/Scrapyard | Entered Materials 103 | -10/Materials | Discovered new exit (range 9) 156 | -10/Materials | Met 8R-AWN 238 | -10/Materials | Entered Mines 239 | -10/Mines | YI-UF0 nonchalantly dropped a Grenade Launcher on the ground 239 | -10/Mines | Followed 8R-AWN into the Mines 257 | -10/Mines | Discovered new exit (range 5) 260 | -10/Mines | Entered Exiles 280 | -10/Exiles | Welcomed by 8R-AWN 293 | -10/Exiles | Met EX-HEX 304 | -10/Exiles | Build established: Mutant 317 | -10/Exiles | Met EX-BIN 398 | -10/Exiles | Aligned with FarCom system 399 | -10/Exiles | Given EX-Vault access code 419 | -10/Exiles | Opened EX-Vault 424 | -10/Exiles | Found AWS/Thermal 443 | -10/Exiles | Warned to stay clear of 0b10 Research branches 468 | -10/Exiles | Met EX-DEC 484 | -10/Exiles | Learned location of Zion (-7) 528 | -10/Exiles | Visited The Gauntlet 686 | -10/Exiles | Discovered new exit (range 12) 702 | -10/Exiles | Left Exiles lab with AWS/Thermal 702 | -10/Exiles | Entered Mines 722 | -9/Mines | Met a Derelict bent on vengeance 738 | -9/Mines | Met a Derelict testing a Signal Generator 743 | -9/Mines | Discovered new exit (range 14) 764 | -9/Mines | Entered Materials 764 | -8/Materials | Accompanied by 1 ally 764 | -8/Materials | Evolved 4 slots: Power x1, Propulsion x1, Utility x2 1111 | -8/Materials | Discovered new exit (range 15) 1313 | -8/Materials | Identified exit to Factory 1316 | -8/Materials | Entered Factory 1316 | -7/Factory | Evolved 2 slots: Propulsion x1, Utility x1 2065 | -7/Factory | Discovered new exit (range 10) 2075 | -7/Factory | Identified exit to Storage 2076 | -7/Factory | Entered Storage 2444 | -7/Storage | Assisted by bots powering up and referring to "LRC-V3" 2577 | -7/Storage | Lost 6 allies 2633 | -7/Storage | P-60 Hacker assimilated allied Trooper 4c 2699 | -7/Storage | AWS/Thermal suddenly broke down 2926 | -7/Storage | Released all parts (6) 2956 | -7/Storage | Lost 3 parts (2n1w) 2988 | -7/Storage | Discovered new exit (range 16) 2997 | -7/Storage | Met a pair of Derelict thieves 3093 | -7/Storage | Core integrity fell below 50% 3112 | -7/Storage | Core integrity fell below 20% 3113 | -7/Storage | Entered Factory 3113 | -6/Factory | Evolved 2 slots: Utility x2 3139 | -6/Factory | Lost 5 parts (2n1u2w) 3531 | -6/Factory | Garrison activated, responded to threat 3931 | -6/Factory | Discovered new exit (range 17) 4031 | -6/Factory | Discovered new exit (range 7) 4061 | -6/Factory | Build established: Scavenger-Mutant 4063 | -6/Factory | Identified exit to Extension 4092 | -6/Factory | Entered Extension 4501 | -6/Extension | Rescued a captive Derelict 4502 | -6/Extension | Rescued a captive Derelict 4524 | -6/Extension | Rescued A7 4554 | -6/Extension | Rescued a captive Derelict 4636 | -6/Extension | Rescued a captive Derelict 4644 | -6/Extension | Rescued a captive Derelict 4689 | -6/Extension | Rescued a captive Derelict 4852 | -6/Extension | Spotted B-75 Beast 4854 | -6/Extension | Core integrity fell below 50% 4872 | -6/Extension | Self-destructed Last Messages --------------- 04712_ System corrupted: Energy discharge (-98). 04723_ G-50 Soldier destroyed. 04728_ R-10 Processor collects Carbon-fiber Leg. 04731_ R-10 Processor collects Corrupted Carbon-fiber Leg. 04731_ R-10 Processor collects Adv. Heat Sink. 04733_ Slammed into R-10 Processor. 04734_ FE 0WQ9WIQW9AS 04782_ System corrupted: Matter fused (-8). 04794_ R-10 Processor collects Lgt. Angular Momentum Engine. 04800_ Acquired 8 matter. 04816_ System corrupted: Energy discharge (-101). 04839_ System corrupted: Component data lost. 04853_ Backup Propulsion I destroyed. 04853_ Imp. Heat Sink destroyed. 04853_ Hvy. Laser destroyed. 04853_ Aerolev Unit destroyed. 04866_ M9-WT0(g) destroyed. 04869_ RK-EW1(l) knocked back. Map ----- +----------------------------------------------------+ | | | | | | | | | | | | | | | | | #######################################??#???????? | | ?#?#####################?##?##############???????? | | ############### #########?#?######?###???????? | | ############### ################?##???????? | | ## ################### ??????? | | ### ## ############# +???????? | | ### ## ############# ?##?# "?????? | | ########## ##?########## ###?# ??????? | | ########## ############# #####?""????? | | ########## ############# ##### ?????? | | # ######### ############# ######?#????? | | ######### ########## ?????? | | T####### ############%########## ########????? | | ######### ############# %#########o########????? | | ######### T############ "######### ###?####????? | | ########### #############u"######### ##?##?##????? | | ########### ############# T######### ########????? | | #########################@"######### ##?#####????? | | #?#######################%"######### #T######????? | | ?######################## "####?#### " ####????? | | ?####?#################?# ########## ########????? | | ######################### ##########?#########???? | | ??####################### ########## ####?###????? | | ?######################## #########? ########????? | | ###?###################?#g##########?#######?????? | | ?########################b#####?####?######??????? | | ?#?######################h########## ######?#????? | | ####?####################p########## ?#######????? | | #?##?####################%##########?##?###??????? | | #?#######################=#########? ###?#?##????? | | #???#?##?################l#########? ?##?#??#????? | | #####?#???##?######?#####R###Y##Y### ####??#?????? | | ?????????#?###?#?##?###"" "" ? "" "????#??????? | | ????????????##???###?## " " ? ? ???##???????? | | ????????????#?######### ?? ? ? ?##????????? | | ?????#?????#?##?###?##? ? ? ? ? ? ?#?#??????? | | ????????????????##?#?## ? ???? ??#???????? | | ????????????? ? ? ??? ? ?? ?? ? ?? ????????? | | ?????????????? ?? ??? ? ? ?? ? ??? ? ???????? | | ????????????? ????? ??? ??? ?? ? ???????????? | | ?????????????????? ? ?? ??????? ??? ?????????? | | ???????????? ?????? ???? ???? ?????????????????? | +----------------------------------------------------+ Best States ------------- Heat Dissipation 70 Energy Generation 29 Energy Capacity 390 Matter Stores 300 Matter Capacity 300 Sight Range 16 Terrain Scan Range 20 Terrain Scan Density 210 Armor Coverage 600 Core Shielding 20 Weapon Cycling 15 Evasion (%) 55 Offensive Hacking 12 Item Schematics ----------------- None Robot Schematics ------------------ None Fabricated ------------ Nothing Alien Tech Used ----------------- None Achievements -------------- None Challenges ------------ None Game ------ Seed MassRemoteArachnoskeleton Manual? 0 Play Time 00:44:18 Cumulative 189.2 hours Start 2024.08.07 @ 13:16:17 End 2024.08.09 @ 09:53:25 Sessions 3 Manual Loads 0 Difficulty Rogue Special Mode None Game No. 222 Rogue 48 Adventurer 174 Explorer 0 Win Type - Total 1 Types 1/0/0/0/0/0/0/0/0 Lore% 38 Gallery% 62 Achievement% 51 Wizard Run 0 Options --------- Layout 0 ASCII 0 Keyboard 0 Movement Numpad Keybinds 0 Fullscreen 1 Font 18/Terminus Map View 76x50 Zoom Use 0% Tactical HUD 1 Map Filters NONE Filters NONE Steam 1 RUN: 680f2dfa-4667-4273-a984-d79988aa06e7